{"text_format":"1","workbook":"xlsx","n_sheets":4,"sheets":["データ","年賀状宛名","封筒宛名","マニュアル"],"not_rendered":{"charts":0,"images":0,"macros":1,"external_links":0,"defined_names":1,"comments":0,"pivot_tables":0},"unopened":[],"bounds":{"document_bytes":16777216,"sheet_cells":100000,"rows_first":2000,"rows_last":500,"rows_between":2000,"halvings":0,"cell_chars":16384,"cell_head_chars":4096},"cells_cut":0,"cells_raw":0,"read":"whole","date_system":"1900"}

{"sheet":"データ","index":0,"n_rows":9,"n_cols":20,"rows_kept":9,"cut":false,"hidden":false,"merged":[]}
["番号","区分","事務所等","役職","肩書","名前","連名","敬称","郵便\n番号","住所","備考","２年\n年賀状\n（送）","2年\n年賀状\n(受)","2年\n年賀状\n(送追加)","3年\n年賀状\n(送）","3年\n年賀状\n(受)","3年\n年賀状\n(送追加)","4年\n年賀状\n(送）","4年\n年賀状\n(受)","4年\n年賀状\n(送追加)"]
[101,"旭川弁護士会","〇〇法律事務所",null,"弁護士","〇〇　〇〇",null,"先生","0000000","旭川市1条通1丁目1番1号\n〇〇ビル10階","令和2年に住所変更","〇","◯",null,"〇","〇",null,"〇"]
[102,"旭川弁護士会","〇〇法律事務所",null,null,"〇〇　〇〇",null,"様","0000000","旭川市1条通1丁目1番1号\n〇〇ビル10階",null,null,"〇","◯","〇","〇",null,"◯"]
[201,"札幌弁護士会","〇〇法律事務所",null,"弁護士","〇〇　〇〇",null,"先生","0000000","札幌市中央区北1条東1丁目\n〇〇ビル30階",null,"〇","〇",null,"〇","〇",null,"喪","喪"]
[301,"その他弁護士","〇〇法律事務所",null,"弁護士","〇〇　〇〇",null,"先生","0000000","帯広市1条1丁目",null,"〇","〇",null,"〇","〇",null,"〇"]
[401,"依頼者・顧問先・その他","〇〇株式会社","代表取締役社長",null,"〇〇　〇〇",null,"様","0000000","旭川市1条通1丁目1番1号\n〇〇ビル10階",null,"〇",null,null,"〇",null,null,"〇"]
[502,"依頼者・顧問先・その他","〇〇社会保険労務士法人","特定社会保険労務士",null,"〇〇　〇〇",null,"先生","0000000","旭川市1条通1丁目1番1号",null,"〇","〇",null,"〇","〇",null,"〇"]
[503,"依頼者・顧問先・その他",null,null,null,"〇〇　〇〇","〇〇〇","様","0000000","旭川市1条通1丁目1番1号",null,"〇","〇",null,"〇","〇",null,"〇"]
[504,"依頼者・顧問先・その他",null,null,null,"〇〇　〇〇",null,"様","0000000","旭川市1条通1丁目1番1号",null,"〇","〇",null,"〇",null,null,"〇"]

{"sheet":"年賀状宛名","index":1,"n_rows":34,"n_cols":9,"rows_kept":34,"cut":false,"hidden":false,"merged":[[32,5,34,5],[32,6,34,6],[32,7,34,7],[32,8,34,8],[9,1,9,3],[21,1,21,3],[33,1,33,3],[27,1,27,3],[26,6,28,6],[26,7,28,7],[26,8,28,8],[20,5,22,5],[20,6,22,6],[20,7,22,7],[20,8,22,8],[26,5,28,5],[2,8,4,8],[2,7,4,7],[2,6,4,6],[2,5,4,5],[3,1,3,3],[15,1,15,3],[8,5,10,5],[8,6,10,6],[8,7,10,7],[8,8,10,8],[14,5,16,5],[14,6,16,6],[14,7,16,7],[14,8,16,8]]}
[101]
[null,{"$f":"MID(INDEX(データ[郵便\n番号],MATCH(A1,データ[番号])),1,1)","v":"0"},{"$f":"MID(INDEX(データ[郵便\n番号],MATCH(A1,データ[番号])),2,1)","v":"0"},{"$f":"MID(INDEX(データ[郵便\n番号],MATCH(A1,データ[番号])),3,1)","v":"0"},null,{"$f":"MID(INDEX(データ[郵便\n番号],MATCH(A1,データ[番号])),4,1)","v":"0"},{"$f":"MID(INDEX(データ[郵便\n番号],MATCH(A1,データ[番号])),5,1)","v":"0"},{"$f":"MID(INDEX(データ[郵便\n番号],MATCH(A1,データ[番号])),6,1)","v":"0"},{"$f":"MID(INDEX(データ[郵便\n番号],MATCH(A1,データ[番号])),7,1)","v":"0"}]
[null,null,{"$f":"INDEX(データ[肩書],MATCH(A1,データ[番号]))","v":"弁護士"},null,null,{"$f":"Office2(INDEX(データ[事務所等],MATCH(A1,データ[番号])),INDEX(データ[役職],MATCH(A1,データ[番号])))","v":"〇〇法律事務所"},{"$f":"Office1(INDEX(データ[事務所等],MATCH(A1,データ[番号])),INDEX(データ[役職],MATCH(A1,データ[番号])))","v":""},{"$f":"Address2(Kanji(INDEX(データ[住所],MATCH(A1,データ[番号]))))","v":"〇〇ビル一〇階"},{"$f":"Address1(Kanji(INDEX(データ[住所],MATCH(A1,データ[番号]))))","v":"旭川市一条通一丁目一番一号"}]
[{"$f":"Name2(INDEX(データ[連名],MATCH(A1,データ[番号])),INDEX(データ[名前],MATCH(A1,データ[番号])),INDEX(データ[敬称],MATCH(A1,データ[番号])))","v":""},{"$f":"Name1(INDEX(データ[名前],MATCH(A1,データ[番号])),INDEX(データ[敬称],MATCH(A1,データ[番号])))","v":"〇〇　〇〇　先生"}]
[]
[]
[301]
[null,{"$f":"MID(INDEX(データ[郵便\n番号],MATCH(A7,データ[番号])),1,1)","v":"0"},{"$f":"MID(INDEX(データ[郵便\n番号],MATCH(A7,データ[番号])),2,1)","v":"0"},{"$f":"MID(INDEX(データ[郵便\n番号],MATCH(A7,データ[番号])),3,1)","v":"0"},null,{"$f":"MID(INDEX(データ[郵便\n番号],MATCH(A7,データ[番号])),4,1)","v":"0"},{"$f":"MID(INDEX(データ[郵便\n番号],MATCH(A7,データ[番号])),5,1)","v":"0"},{"$f":"MID(INDEX(データ[郵便\n番号],MATCH(A7,データ[番号])),6,1)","v":"0"},{"$f":"MID(INDEX(データ[郵便\n番号],MATCH(A7,データ[番号])),7,1)","v":"0"}]
[null,null,{"$f":"INDEX(データ[肩書],MATCH(A7,データ[番号]))","v":"弁護士"},null,null,{"$f":"Office2(INDEX(データ[事務所等],MATCH(A7,データ[番号])),INDEX(データ[役職],MATCH(A7,データ[番号])))","v":"〇〇法律事務所"},{"$f":"Office1(INDEX(データ[事務所等],MATCH(A7,データ[番号])),INDEX(データ[役職],MATCH(A7,データ[番号])))","v":""},{"$f":"Address2(Kanji(INDEX(データ[住所],MATCH(A7,データ[番号]))))","v":""},{"$f":"Address1(Kanji(INDEX(データ[住所],MATCH(A7,データ[番号]))))","v":"帯広市一条一丁目"}]
[{"$f":"Name2(INDEX(データ[連名],MATCH(A7,データ[番号])),INDEX(データ[名前],MATCH(A7,データ[番号])),INDEX(データ[敬称],MATCH(A7,データ[番号])))","v":""},{"$f":"Name1(INDEX(データ[名前],MATCH(A7,データ[番号])),INDEX(データ[敬称],MATCH(A7,データ[番号])))","v":"〇〇　〇〇　先生"}]
[]
[]
[401]
[null,{"$f":"MID(INDEX(データ[郵便\n番号],MATCH(A13,データ[番号])),1,1)","v":"0"},{"$f":"MID(INDEX(データ[郵便\n番号],MATCH(A13,データ[番号])),2,1)","v":"0"},{"$f":"MID(INDEX(データ[郵便\n番号],MATCH(A13,データ[番号])),3,1)","v":"0"},null,{"$f":"MID(INDEX(データ[郵便\n番号],MATCH(A13,データ[番号])),4,1)","v":"0"},{"$f":"MID(INDEX(データ[郵便\n番号],MATCH(A13,データ[番号])),5,1)","v":"0"},{"$f":"MID(INDEX(データ[郵便\n番号],MATCH(A13,データ[番号])),6,1)","v":"0"},{"$f":"MID(INDEX(データ[郵便\n番号],MATCH(A13,データ[番号])),7,1)","v":"0"}]
[null,null,{"$f":"INDEX(データ[肩書],MATCH(A13,データ[番号]))","v":0},null,null,{"$f":"Office2(INDEX(データ[事務所等],MATCH(A13,データ[番号])),INDEX(データ[役職],MATCH(A13,データ[番号])))","v":"代表取締役社長"},{"$f":"Office1(INDEX(データ[事務所等],MATCH(A13,データ[番号])),INDEX(データ[役職],MATCH(A13,データ[番号])))","v":"〇〇株式会社"},{"$f":"Address2(Kanji(INDEX(データ[住所],MATCH(A13,データ[番号]))))","v":"〇〇ビル一〇階"},{"$f":"Address1(Kanji(INDEX(データ[住所],MATCH(A13,データ[番号]))))","v":"旭川市一条通一丁目一番一号"}]
[{"$f":"Name2(INDEX(データ[連名],MATCH(A13,データ[番号])),INDEX(データ[名前],MATCH(A13,データ[番号])),INDEX(データ[敬称],MATCH(A13,データ[番号])))","v":""},{"$f":"Name1(INDEX(データ[名前],MATCH(A13,データ[番号])),INDEX(データ[敬称],MATCH(A13,データ[番号])))","v":"〇〇　〇〇　様"}]
[]
[]
[502]
[null,{"$f":"MID(INDEX(データ[郵便\n番号],MATCH(A19,データ[番号])),1,1)","v":"0"},{"$f":"MID(INDEX(データ[郵便\n番号],MATCH(A19,データ[番号])),2,1)","v":"0"},{"$f":"MID(INDEX(データ[郵便\n番号],MATCH(A19,データ[番号])),3,1)","v":"0"},null,{"$f":"MID(INDEX(データ[郵便\n番号],MATCH(A19,データ[番号])),4,1)","v":"0"},{"$f":"MID(INDEX(データ[郵便\n番号],MATCH(A19,データ[番号])),5,1)","v":"0"},{"$f":"MID(INDEX(データ[郵便\n番号],MATCH(A19,データ[番号])),6,1)","v":"0"},{"$f":"MID(INDEX(データ[郵便\n番号],MATCH(A19,データ[番号])),7,1)","v":"0"}]
[null,null,{"$f":"INDEX(データ[肩書],MATCH(A19,データ[番号]))","v":0},null,null,{"$f":"Office2(INDEX(データ[事務所等],MATCH(A19,データ[番号])),INDEX(データ[役職],MATCH(A19,データ[番号])))","v":"特定社会保険労務士"},{"$f":"Office1(INDEX(データ[事務所等],MATCH(A19,データ[番号])),INDEX(データ[役職],MATCH(A19,データ[番号])))","v":"〇〇社会保険労務士法人"},{"$f":"Address2(Kanji(INDEX(データ[住所],MATCH(A19,データ[番号]))))","v":""},{"$f":"Address1(Kanji(INDEX(データ[住所],MATCH(A19,データ[番号]))))","v":"旭川市一条通一丁目一番一号"}]
[{"$f":"Name2(INDEX(データ[連名],MATCH(A19,データ[番号])),INDEX(データ[名前],MATCH(A19,データ[番号])),INDEX(データ[敬称],MATCH(A19,データ[番号])))","v":""},{"$f":"Name1(INDEX(データ[名前],MATCH(A19,データ[番号])),INDEX(データ[敬称],MATCH(A19,データ[番号])))","v":"〇〇　〇〇　先生"}]
[]
[]
[503]
[null,{"$f":"MID(INDEX(データ[郵便\n番号],MATCH(A25,データ[番号])),1,1)","v":"0"},{"$f":"MID(INDEX(データ[郵便\n番号],MATCH(A25,データ[番号])),2,1)","v":"0"},{"$f":"MID(INDEX(データ[郵便\n番号],MATCH(A25,データ[番号])),3,1)","v":"0"},null,{"$f":"MID(INDEX(データ[郵便\n番号],MATCH(A25,データ[番号])),4,1)","v":"0"},{"$f":"MID(INDEX(データ[郵便\n番号],MATCH(A25,データ[番号])),5,1)","v":"0"},{"$f":"MID(INDEX(データ[郵便\n番号],MATCH(A25,データ[番号])),6,1)","v":"0"},{"$f":"MID(INDEX(データ[郵便\n番号],MATCH(A25,データ[番号])),7,1)","v":"0"}]
[null,null,{"$f":"INDEX(データ[肩書],MATCH(A25,データ[番号]))","v":0},null,null,{"$f":"Office2(INDEX(データ[事務所等],MATCH(A25,データ[番号])),INDEX(データ[役職],MATCH(A25,データ[番号])))","v":""},{"$f":"Office1(INDEX(データ[事務所等],MATCH(A25,データ[番号])),INDEX(データ[役職],MATCH(A25,データ[番号])))","v":""},{"$f":"Address2(Kanji(INDEX(データ[住所],MATCH(A25,データ[番号]))))","v":""},{"$f":"Address1(Kanji(INDEX(データ[住所],MATCH(A25,データ[番号]))))","v":"旭川市一条通一丁目一番一号"}]
[{"$f":"Name2(INDEX(データ[連名],MATCH(A25,データ[番号])),INDEX(データ[名前],MATCH(A25,データ[番号])),INDEX(データ[敬称],MATCH(A25,データ[番号])))","v":"　　〇〇〇　様"},{"$f":"Name1(INDEX(データ[名前],MATCH(A25,データ[番号])),INDEX(データ[敬称],MATCH(A25,データ[番号])))","v":"〇〇　〇〇　様"}]
[]
[]
[504]
[null,{"$f":"MID(INDEX(データ[郵便\n番号],MATCH(A31,データ[番号])),1,1)","v":"0"},{"$f":"MID(INDEX(データ[郵便\n番号],MATCH(A31,データ[番号])),2,1)","v":"0"},{"$f":"MID(INDEX(データ[郵便\n番号],MATCH(A31,データ[番号])),3,1)","v":"0"},null,{"$f":"MID(INDEX(データ[郵便\n番号],MATCH(A31,データ[番号])),4,1)","v":"0"},{"$f":"MID(INDEX(データ[郵便\n番号],MATCH(A31,データ[番号])),5,1)","v":"0"},{"$f":"MID(INDEX(データ[郵便\n番号],MATCH(A31,データ[番号])),6,1)","v":"0"},{"$f":"MID(INDEX(データ[郵便\n番号],MATCH(A31,データ[番号])),7,1)","v":"0"}]
[null,null,{"$f":"INDEX(データ[肩書],MATCH(A31,データ[番号]))","v":0},null,null,{"$f":"Office2(INDEX(データ[事務所等],MATCH(A31,データ[番号])),INDEX(データ[役職],MATCH(A31,データ[番号])))","v":""},{"$f":"Office1(INDEX(データ[事務所等],MATCH(A31,データ[番号])),INDEX(データ[役職],MATCH(A31,データ[番号])))","v":""},{"$f":"Address2(Kanji(INDEX(データ[住所],MATCH(A31,データ[番号]))))","v":""},{"$f":"Address1(Kanji(INDEX(データ[住所],MATCH(A31,データ[番号]))))","v":"旭川市一条通一丁目一番一号"}]
[{"$f":"Name2(INDEX(データ[連名],MATCH(A31,データ[番号])),INDEX(データ[名前],MATCH(A31,データ[番号])),INDEX(データ[敬称],MATCH(A31,データ[番号])))","v":""},{"$f":"Name1(INDEX(データ[名前],MATCH(A31,データ[番号])),INDEX(データ[敬称],MATCH(A31,データ[番号])))","v":"〇〇　〇〇　様"}]

{"sheet":"封筒宛名","index":2,"n_rows":76,"n_cols":3,"rows_kept":76,"cut":false,"hidden":false,"merged":[]}
[101,{"$f":"LEFT(INDEX(データ[郵便\n番号],MATCH(A1,データ[番号])),3) & \"-\" & RIGHT( INDEX(データ[郵便\n番号],MATCH(A1,データ[番号])),4)","v":"000-0000"}]
[null,{"$f":"INDEX(データ[住所],MATCH(A1,データ[番号]))","v":"旭川市1条通1丁目1番1号\n〇〇ビル10階"}]
[null,{"$f":"INDEX(データ[事務所等],MATCH(A1,データ[番号]))","v":"〇〇法律事務所"}]
[null,{"$f":"INDEX(データ[役職],MATCH(A1,データ[番号]))","v":0}]
[null,{"$f":"INDEX(データ[肩書],MATCH(A1,データ[番号]))","v":"弁護士"},{"$f":"Name1(INDEX(データ[名前],MATCH(A1,データ[番号])),INDEX(データ[敬称],MATCH(A1,データ[番号])))","v":"〇〇　〇〇　先生"}]
[null,null,{"$f":"Name2(INDEX(データ[連名],MATCH(A1,データ[番号])),INDEX(データ[名前],MATCH(A1,データ[番号])),INDEX(データ[敬称],MATCH(A1,データ[番号])))","v":""}]
[]
[]
[]
[]
[]
[]
[]
[]
[301,{"$f":"LEFT(INDEX(データ[郵便\n番号],MATCH(A15,データ[番号])),3) & \"-\" & RIGHT( INDEX(データ[郵便\n番号],MATCH(A15,データ[番号])),4)","v":"000-0000"}]
[null,{"$f":"INDEX(データ[住所],MATCH(A15,データ[番号]))","v":"帯広市1条1丁目"}]
[null,{"$f":"INDEX(データ[事務所等],MATCH(A15,データ[番号]))","v":"〇〇法律事務所"}]
[null,{"$f":"INDEX(データ[役職],MATCH(A15,データ[番号]))","v":0}]
[null,{"$f":"INDEX(データ[肩書],MATCH(A15,データ[番号]))","v":"弁護士"},{"$f":"Name1(INDEX(データ[名前],MATCH(A15,データ[番号])),INDEX(データ[敬称],MATCH(A15,データ[番号])))","v":"〇〇　〇〇　先生"}]
[null,null,{"$f":"Name2(INDEX(データ[連名],MATCH(A15,データ[番号])),INDEX(データ[名前],MATCH(A15,データ[番号])),INDEX(データ[敬称],MATCH(A15,データ[番号])))","v":""}]
[]
[]
[]
[]
[]
[]
[]
[]
[401,{"$f":"LEFT(INDEX(データ[郵便\n番号],MATCH(A29,データ[番号])),3) & \"-\" & RIGHT( INDEX(データ[郵便\n番号],MATCH(A29,データ[番号])),4)","v":"000-0000"}]
[null,{"$f":"INDEX(データ[住所],MATCH(A29,データ[番号]))","v":"旭川市1条通1丁目1番1号\n〇〇ビル10階"}]
[null,{"$f":"INDEX(データ[事務所等],MATCH(A29,データ[番号]))","v":"〇〇株式会社"}]
[null,{"$f":"INDEX(データ[役職],MATCH(A29,データ[番号]))","v":"代表取締役社長"}]
[null,{"$f":"INDEX(データ[肩書],MATCH(A29,データ[番号]))","v":0},{"$f":"Name1(INDEX(データ[名前],MATCH(A29,データ[番号])),INDEX(データ[敬称],MATCH(A29,データ[番号])))","v":"〇〇　〇〇　様"}]
[null,null,{"$f":"Name2(INDEX(データ[連名],MATCH(A29,データ[番号])),INDEX(データ[名前],MATCH(A29,データ[番号])),INDEX(データ[敬称],MATCH(A29,データ[番号])))","v":""}]
[]
[]
[]
[]
[]
[]
[]
[]
[502,{"$f":"LEFT(INDEX(データ[郵便\n番号],MATCH(A43,データ[番号])),3) & \"-\" & RIGHT( INDEX(データ[郵便\n番号],MATCH(A43,データ[番号])),4)","v":"000-0000"}]
[null,{"$f":"INDEX(データ[住所],MATCH(A43,データ[番号]))","v":"旭川市1条通1丁目1番1号"}]
[null,{"$f":"INDEX(データ[事務所等],MATCH(A43,データ[番号]))","v":"〇〇社会保険労務士法人"}]
[null,{"$f":"INDEX(データ[役職],MATCH(A43,データ[番号]))","v":"特定社会保険労務士"}]
[null,{"$f":"INDEX(データ[肩書],MATCH(A43,データ[番号]))","v":0},{"$f":"Name1(INDEX(データ[名前],MATCH(A43,データ[番号])),INDEX(データ[敬称],MATCH(A43,データ[番号])))","v":"〇〇　〇〇　先生"}]
[null,null,{"$f":"Name2(INDEX(データ[連名],MATCH(A43,データ[番号])),INDEX(データ[名前],MATCH(A43,データ[番号])),INDEX(データ[敬称],MATCH(A43,データ[番号])))","v":""}]
[]
[]
[]
[]
[]
[]
[]
[]
[503,{"$f":"LEFT(INDEX(データ[郵便\n番号],MATCH(A57,データ[番号])),3) & \"-\" & RIGHT( INDEX(データ[郵便\n番号],MATCH(A57,データ[番号])),4)","v":"000-0000"}]
[null,{"$f":"INDEX(データ[住所],MATCH(A57,データ[番号]))","v":"旭川市1条通1丁目1番1号"}]
[null,{"$f":"INDEX(データ[事務所等],MATCH(A57,データ[番号]))","v":0}]
[null,{"$f":"INDEX(データ[役職],MATCH(A57,データ[番号]))","v":0}]
[null,{"$f":"INDEX(データ[肩書],MATCH(A57,データ[番号]))","v":0},{"$f":"Name1(INDEX(データ[名前],MATCH(A57,データ[番号])),INDEX(データ[敬称],MATCH(A57,データ[番号])))","v":"〇〇　〇〇　様"}]
[null,null,{"$f":"Name2(INDEX(データ[連名],MATCH(A57,データ[番号])),INDEX(データ[名前],MATCH(A57,データ[番号])),INDEX(データ[敬称],MATCH(A57,データ[番号])))","v":"　　〇〇〇　様"}]
[]
[]
[]
[]
[]
[]
[]
[]
[504,{"$f":"LEFT(INDEX(データ[郵便\n番号],MATCH(A71,データ[番号])),3) & \"-\" & RIGHT( INDEX(データ[郵便\n番号],MATCH(A71,データ[番号])),4)","v":"000-0000"}]
[null,{"$f":"INDEX(データ[住所],MATCH(A71,データ[番号]))","v":"旭川市1条通1丁目1番1号"}]
[null,{"$f":"INDEX(データ[事務所等],MATCH(A71,データ[番号]))","v":0}]
[null,{"$f":"INDEX(データ[役職],MATCH(A71,データ[番号]))","v":0}]
[null,{"$f":"INDEX(データ[肩書],MATCH(A71,データ[番号]))","v":0},{"$f":"Name1(INDEX(データ[名前],MATCH(A71,データ[番号])),INDEX(データ[敬称],MATCH(A71,データ[番号])))","v":"〇〇　〇〇　様"}]
[null,null,{"$f":"Name2(INDEX(データ[連名],MATCH(A71,データ[番号])),INDEX(データ[名前],MATCH(A71,データ[番号])),INDEX(データ[敬称],MATCH(A71,データ[番号])))","v":""}]

{"sheet":"マニュアル","index":3,"n_rows":40,"n_cols":4,"rows_kept":40,"cut":false,"hidden":false,"merged":[]}
["年賀状宛名印刷システムマニュアル"]
[]
["１　目　的"]
[null,"年賀状などの住所等データーの管理、年賀状および封筒の宛名印刷を行うものです。"]
[]
["２　使用法"]
[null,"(1)　データの作成"]
[null,null,"・　「データ」シートを開いてください。"]
[null,null,"・　「番号」を入力してください。（必須）"]
[null,null,null,"・　重複した番号は入力しないでください。"]
[null,null,null,"・　番号に欠落があっても問題ありません。"]
[]
[null,null,"・　「番号」以外の各項目を入力してください。"]
[null,null,null,"・　「氏名」は、氏と名の間に全角の空白を入力してください。\n・　「住所」の数字やハイフンは、半角で入力して下さい。（年賀状の宛名は、自動的に漢字に変換されます。）\n・　「住所」の途中で改行すると、年賀状は2列で印刷されます。（3列目は印刷されません。）"]
[]
[null,null,"・　各年の年賀状等の受領・送付の有無欄を備考欄よりも右側に追加してください。"]
[null,null,null,"・　入力欄のセルをダブルクリックすると、「〇」、「×」、「喪」（喪中はがきの意）と空白がトグルします。"]
[null,null,null,"・　「〇」が入力されているものだけが印刷されます。"]
[]
[null,"(2)　年賀状または封筒用宛名データの作成"]
[null,null,"・　「データ」シートで一覧表を印刷したい列の見出し行のセルを選択してください。"]
[null,null,"・　「年賀状宛名」または「年賀状宛名」シートを開いて、メッセージが表示されたら「OK」をクリックして下さい。"]
[null,null,null,"・　印刷位置、フォントなどを修正したい場合は、1ページ目の書式を修正してください。"]
[null,null,null,"・　宛先データを作成しなおすと、2ページ以降は1ページ目と同じ書式に変更されます。"]
[null,null,"・　「ファイル」－「印刷」をクリックして、印刷して下さい。"]
[]
["3　履　歴"]
[null,"(1)　Ver.1.00 31.3.11"]
[null,"(2)　Ver.1.10 1.12.19"]
[null,null,null,"印刷時、「役職」が「弁護士」の場合、氏名の上（または左）側に「弁護士」を記載するように変更"]
[null,null,null,"「敬称」の項目を追加し、「先生」にも対応できるように修正"]
[null,"(3) Ver.1.20 3.12.27"]
[null,null,null,"一覧表作成機能を削除"]
[null,null,null,"住所を2行で印刷したい場合は、空白ではなく、改行コードで区切るように修正"]
[null,null,null,"見出し行を選択した場合のみに宛名の作成を行うように修正"]
[]
["4　その他"]
[null,null,"・　エラー処理は、行っていません。"]
[null,null,"・　シートの保護は、行っていません。"]
[null,null,"・　誤作動・入力・消去により、正常に作動しなくなった場合に備えて、バックアップを取っておいてください。"]